bitfinex/quotes_ETHUSD_20230111
["timestamp","ask_amount","ask_price","bid_price","bid_amount"]
[1673461631878,25.3909406,1338.8,1338.5,2.80994435]
[1673461632025,23.74521,1338.8,1338.6,1.85314606]
[1673461632224,23.74721,1338.8,1338.6,1.85314606]
[1673461632433,23.74721,1338.8,1338.5,1.22679008]
[1673461632434,23.74521,1338.8,1338.5,1.16079008]
[1673461632644,23.74521,1338.8,1338.6,1.85315828]
[1673461632898,27.66639924,1338.8,1338.6,1.85315828]
[1673461633108,27.66839924,1338.8,1338.5,1.22679008]
[1673461633329,23.74521,1338.8,1338.6,1.8531615]
[1673461633940,22.40821,1338.8,1338.6,1.8531615]
[1673461634147,22.40821,1338.8,1338.5,2.80994435]
[1673461634370,22.40821,1338.8,1338.6,1.85314778]
[1673461634810,22.40821,1338.8,1338.5,1.16079008]
[1673461634811,22.40821,1338.8,1338.5,2.80994435]
[1673461635017,22.40821,1338.8,1338.6,1.85311986]
[1673461635227,26.22172139,1338.8,1338.6,1.85311986]
[1673461635385,22.41021,1338.8,1338.6,1.85311986]
[1673461635599,0.002,1338.8,1338.6,26.51076618]
[1673461635821,0.5603,1338.9,1338.7,9.32294986]
[1673461636076,0.5603,1338.9,1338.7,7.53583]
[1673461636228,0.6262,1339.0,1338.8,24.26100271]
[1673461636439,0.066,1339.1,1338.8,23.57354618]
[1673461636649,29.42467851,1339.2,1338.9,1.85278877]
[1673461636859,29.56363764,1339.2,1338.9,1.85278877]
[1673461637071,31.22839968,1339.2,1338.9,1.85278877]
[1673461637280,1.09677851,1339.1,1338.8,7.53537]
[1673461637599,3.0,1339.1,1338.8,0.066]
[1673461637928,10.46771,1339.1,1338.7,19.16227045]
[1673461638139,10.51971,1339.1,1338.8,2.0828427]
[1673461638416,26.55189851,1339.1,1338.7,10.04353618]
[1673461638596,19.22315907,1339.1,1338.7,10.04353618]
[1673461638750,25.24349528,1339.1,1338.7,10.04353618]
[1673461638962,25.24349528,1339.1,1338.7,17.51344618]
[1673461639167,38.17362796,1339.1,1338.7,10.04353618]
[1673461639430,39.50762796,1339.1,1338.7,8.3837]
[1673461640011,39.50762796,1339.1,1338.7,0.066]
[1673461640223,23.7437,1338.9,1338.6,4.72583618]
[1673461640545,16.32678,1338.9,1338.7,1.85304194]
[1673461642010,23.7957,1338.9,1338.6,5.53580938]
[1673461642216,23.7957,1338.9,1338.7,1.85304569]
[1673461642539,24.89247851,1338.9,1338.6,0.066]
[1673461642766,7.46993,1338.7,1338.5,20.84309008]
[1673461642988,7.46993,1338.7,1338.6,1.8532008]
[1673461643373,15.00526,1338.8,1338.6,1.8532008]
[1673461643708,14.94126,1338.8,1338.6,1.8532008]
[1673461645204,14.94126,1338.8,1338.6,2.95263698]
[1673461645578,7.47158,1338.8,1338.6,2.95263698]
[1673461646980,14.94118,1338.8,1338.6,2.95263698]
[1673461647199,22.41078,1338.8,1338.5,5.39327561]
[1673461647373,25.64652185,1338.8,1338.6,1.85317118]
[1673461647583,25.64852185,1338.8,1338.6,1.85317118]
[1673461648047,25.64852185,1338.8,1338.6,2.95260736]
[1673461648204,3.23974185,1338.8,1338.5,2.87594435]
[1673461648418,9.96863851,1338.9,1338.6,2.95257443]
[1673461648624,23.55585851,1338.9,1338.6,10.42301443]
[1673461648871,23.55585851,1338.9,1338.7,1.85313825]
[1673461649480,23.55585851,1338.9,1338.6,1.09943618]
[1673461649834,27.52656531,1338.9,1338.6,2.95256559]
[1673461650049,27.57656531,1338.9,1338.6,2.95256559]
[1673461650206,27.57656531,1338.9,1338.5,17.81738435]
[1673461650407,27.66555398,1338.9,1338.6,1.85318292]
[1673461650622,27.52656531,1338.9,1338.6,1.85318292]
[1673461650861,10.22224653,1338.8,1338.6,1.85318292]
[1673461651073,10.22224653,1338.8,1338.6,2.9526191]
[1673461651074,7.47159,1338.8,1338.6,2.9526191]
[1673461651253,7.47159,1338.8,1338.5,25.28825435]
[1673461651465,7.46959,1338.8,1338.6,1.85316696]
[1673461651714,7.47159,1338.8,1338.6,1.85316696]
[1673461651934,7.47159,1338.8,1338.6,2.95260314]
[1673461653204,0.002,1338.8,1338.6,10.42307314]
[1673461653367,19.0106868,1338.9,1338.7,1.85316696]
[1673461653593,11.5435668,1338.9,1338.7,1.85316696]
[1673461653918,11.5415668,1338.9,1338.7,1.85316696]
[1673461655319,0.052,1338.9,1338.7,10.42234314]
[1673461655486,24.53457,1339.0,1338.9,0.00347786]
[1673461655690,19.34673064,1339.0,1338.9,0.00347786]
[1673461655900,20.44350915,1339.0,1338.9,0.00347786]
[1673461656842,19.34673064,1339.0,1338.9,0.00347786]
[1673461657263,24.02429776,1339.0,1338.9,0.00347786]
[1673461657729,32.58962627,1339.0,1338.9,0.00347786]
[1673461658348,32.72860414,1339.0,1338.9,0.00347786]
[1673461658537,32.58962627,1339.0,1338.9,0.00347786]
[1673461658749,32.72860446,1339.0,1338.9,0.00347786]
[1673461659917,35.7303665,1339.0,1338.9,0.00347786]
[1673461660951,34.63358799,1339.0,1338.9,0.00347786]
[1673461661842,35.19225905,1339.0,1338.9,0.00347786]
[1673461662903,34.07338799,1339.0,1338.9,0.00347786]
[1673461663692,35.19230512,1339.0,1338.9,0.00347786]
[1673461664168,34.07338799,1339.0,1338.9,0.00347786]
[1673461664336,35.19227126,1339.0,1338.9,0.00347786]
[1673461666608,34.07338799,1339.0,1338.9,0.00347786]
[1673461667234,35.19228971,1339.0,1338.9,0.00347786]
[1673461668276,33.52752767,1339.0,1338.9,0.00347786]
[1673461668610,5.84846884,1339.0,1338.9,0.00347786]
[1673461668823,0.052,1339.0,1338.9,0.00145174]
[1673461669113,27.58756368,1339.1,1338.9,0.00145174]
[1673461669114,27.62551368,1339.1,1338.9,0.00145174]
[1673461669331,31.42317432,1339.1,1338.9,0.00145174]
[1673461669523,29.75841228,1339.1,1338.9,0.00145174]
[1673461669705,29.61944236,1339.1,1338.9,0.00145174]
[1673461669915,36.0947779,1339.1,1338.9,0.00145174]
[1673461670241,36.23374414,1339.1,1338.9,0.00145174]
[1673461670479,28.6268179,1339.1,1338.9,0.00145174]
[1673461671503,28.6267979,1339.1,1338.9,0.00145174]
[1673461674143,27.2917979,1339.1,1338.9,0.00145174]
[1673461674478,18.70519618,1339.1,1338.9,0.00145174]
[1673461674692,15.90003,1339.1,1338.9,0.00145174]
[1673461675209,24.48676172,1339.1,1338.9,0.00145174]
[1673461675432,23.36786,1339.1,1338.9,0.00145174]
[1673461675583,17.01893172,1339.1,1338.9,0.00145174]
[1673461676004,17.01884172,1339.1,1338.9,0.00145174]
[1673461676262,15.89994,1339.1,1338.9,0.00145174]
[1673461676472,17.01884172,1339.1,1338.9,0.00145174]
[1673461677107,25.40475,1339.0,1338.9,0.00145174]
[1673461677272,17.9885,1339.0,1338.9,0.00145174]
[1673461677687,14.9885,1339.0,1338.9,0.00145174]
[1673461678064,7.52025,1339.0,1338.9,0.00145174]
[1673461678362,0.052,1339.0,1338.9,0.00145174]
[1673461678525,37.54273913,1339.1,1338.9,0.00145174]
[1673461678736,39.20750117,1339.1,1338.9,0.00145174]
[1673461678945,22.4675811,1339.1,1338.9,0.00145174]
[1673461679205,14.9998811,1339.1,1338.9,0.00145174]
[1673461679424,14.9998811,1339.1,1338.9,7.47018174]
[1673461679575,14.9998811,1339.1,1338.9,0.06745174]
[1673461679830,29.9355711,1339.1,1338.9,0.00145174]
[1673461681036,22.4675811,1339.1,1338.9,0.00145174]
[1673461682254,2.24675811,1339.0,1338.9,0.00145174]
[1673461682466,22.4815811,1339.1,1338.9,0.00145174]
[1673461682677,22.4675811,1339.1,1338.9,0.00145174]
[1673461683036,13.88097938,1339.1,1338.9,0.00145174]
[1673461683241,13.88097938,1339.1,1338.9,7.47023174]
[1673461683433,13.88097938,1339.1,1338.9,7.53623174]
[1673461685358,0.052,1339.1,1338.9,4.82294111]
[1673461685505,0.6121,1339.2,1339.0,24.25733012]
[1673461685715,9.55452312,1339.3,1339.0,22.47075]
[1673461686034,9.53852312,1339.3,1339.0,23.80775]
[1673461686241,8.97842312,1339.3,1339.1,1.85250075]
[1673461686455,8.98042312,1339.3,1339.1,7.46767]
[1673461686798,8.98042312,1339.3,1339.1,7.53367]
[1673461687400,0.14632312,1339.3,1339.1,7.53367]
[1673461687743,0.14432311,1339.3,1339.1,7.53367]
[1673461687961,0.14432311,1339.3,1339.1,23.80607]
[1673461688189,0.14432311,1339.3,1339.1,24.24367]
[1673461688708,0.14432311,1339.3,1339.1,23.80607]
[1673461690255,0.14432311,1339.3,1339.1,26.51584808]
[1673461690445,0.14432311,1339.3,1339.1,23.80607]
[1673461690869,0.14432311,1339.3,1339.2,4.8971]
[1673461691186,0.14432311,1339.3,1339.2,24.29852]
[1673461691408,0.14432311,1339.3,1339.2,24.59452]
[1673461691600,0.14432311,1339.3,1339.2,26.44673912]
[1673461692243,2.311e-05,1339.3,1339.2,26.44667264]
[1673461692686,2.311e-05,1339.3,1339.2,24.59452]
[1673461692877,0.14432311,1339.4,1339.2,24.59452]
[1673461696029,0.14432311,1339.4,1339.2,28.39218064]
[1673461696242,0.14432311,1339.4,1339.3,0.23]
[1673461696462,0.14432311,1339.4,1339.3,22.62974]
[1673461696683,0.14432311,1339.4,1339.3,22.69574]
[1673461698233,0.14432311,1339.4,1339.3,15.22916]
[1673461698448,0.14432311,1339.4,1339.3,7.76258]
[1673461698858,0.14432311,1339.4,1339.3,15.22916]
[1673461699083,0.14432311,1339.4,1339.3,24.03274]
[1673461700219,0.14432311,1339.4,1339.3,35.56452512]
[1673461700659,0.14432311,1339.4,1339.3,30.83040064]
[1673461701301,2.311e-05,1339.4,1339.3,30.83040064]
[1673461702266,0.14432311,1339.5,1339.3,37.20249756]
[1673461702461,2.311e-05,1339.5,1339.4,35.43182064]
[1673461702632,2.311e-05,1339.5,1339.4,32.49782064]
[1673461702889,2.311e-05,1339.5,1339.4,32.72782064]
[1673461703070,0.15048026,1339.6,1339.4,32.72782064]
[1673461703282,0.15048026,1339.6,1339.5,23.95841]
[1673461703523,0.15048026,1339.6,1339.5,27.82207064]
[1673461704134,0.15048026,1339.6,1339.5,30.82207064]
[1673461705853,0.15560878,1339.7,1339.5,30.82207064]
[1673461705854,1e-08,1339.7,1339.5,30.82207064]
[1673461706004,1e-08,1339.7,1339.6,5.13466064]
[1673461706209,1e-08,1339.7,1339.6,23.79773]
[1673461706425,1e-08,1339.7,1339.6,0.066]
[1673461706673,1e-08,1339.7,1339.6,7.46491]
[1673461707001,1e-08,1339.7,1339.6,7.53091]
[1673461707591,1e-08,1339.7,1339.6,14.99582]
[1673461708013,1e-08,1339.7,1339.6,7.53091]
[1673461708694,1e-08,1339.7,1339.6,22.46073]
[1673461708834,1e-08,1339.7,1339.6,22.69073]
[1673461710948,1e-08,1339.7,1339.6,24.02773]
[1673461713049,1e-08,1339.7,1339.6,25.36473]
[1673461713953,1e-08,1339.7,1339.6,29.16239064]
[1673461714109,1e-08,1339.7,1339.6,32.72239064]
[1673461714326,1e-08,1339.7,1339.6,37.45572387]
[1673461714583,1e-08,1339.7,1339.6,32.72239064]
[1673461716444,1e-08,1339.7,1339.6,37.45570898]
[1673461716777,1e-08,1339.7,1339.6,32.72239064]
[1673461717354,0.17848026,1339.8,1339.7,4.39099999]
[1673461717618,0.17848026,1339.8,1339.7,36.99201334]
[1673461717778,0.17848026,1339.8,1339.7,37.05801334]
[1673461718351,0.17848026,1339.8,1339.7,35.20671063]
[1673461720148,0.17848026,1339.8,1339.7,38.60964133]
[1673461720325,0.17848026,1339.8,1339.7,36.54371063]
[1673461722229,0.17848026,1339.8,1339.7,33.54371063]
[1673461723694,0.17848026,1339.8,1339.7,30.87771063]
[1673461723902,0.17848026,1339.8,1339.7,33.54871063]
[1673461724153,0.17848026,1339.8,1339.7,33.54671064]
[1673461724856,0.17848026,1339.8,1339.7,35.39806496]
[1673461725260,0.17848026,1339.8,1339.7,35.39807804]
[1673461725536,0.17848026,1339.8,1339.7,34.06407804]
[1673461725730,29.8120391,1340.1,1339.7,34.06407804]
[1673461726047,0.00200001,1340.1,1339.9,22.38972]
[1673461726283,0.72503524,1340.2,1340.0,0.23]
[1673461726420,0.72503524,1340.2,1340.0,7.69247]
[1673461726789,0.72503524,1340.2,1340.0,7.75847]
[1673461727151,0.72503524,1340.2,1340.0,14.99115]
[1673461727357,0.72503524,1340.2,1340.0,14.99104]
[1673461727358,3.72503524,1340.2,1340.0,14.99104]
[1673461727783,3.72503524,1340.2,1340.0,0.066]
[1673461727997,11.18663524,1340.2,1339.9,14.99195]
[1673461728224,11.18863525,1340.2,1339.9,14.99195]
[1673461728448,11.18863525,1340.2,1339.9,22.455]
[1673461728653,3.72703525,1340.2,1339.9,22.455]
[1673461728865,3.72503524,1340.2,1339.9,22.455]
[1673461729418,2.06103524,1340.2,1339.9,22.455]
[1673461729776,5.06103524,1340.2,1339.9,22.455]
[1673461729989,5.06303525,1340.2,1339.9,7.5289]
[1673461730236,15.01970362,1340.2,1339.9,7.5289]
[1673461730405,1.324,1340.0,1339.9,0.066]
[1673461730619,1.8838,1340.0,1339.7,14.92805]
[1673461730862,1.8838,1340.0,1339.7,22.4584]
[1673461731506,1.8838,1340.0,1339.7,14.99405]
[1673461732667,9.34662,1340.0,1339.7,7.53002]
[1673461732876,22.44040601,1340.0,1339.7,7.53002]
[1673461733400,14.97758601,1340.0,1339.7,14.99437]
[1673461733561,13.65358601,1340.0,1339.7,14.99437]
[1673461733776,0.56180001,1340.0,1339.7,22.45872]
[1673461733985,0.5598,1340.0,1339.7,22.45872]
[1673461734455,29.50340001,1340.1,1339.7,22.45872]
[1673461734625,33.58554237,1340.1,1339.7,22.45872]
[1673461734973,29.48940001,1340.1,1339.7,22.45872]
[1673461735519,29.48940001,1340.1,1339.7,26.25638064]
[1673461735677,29.48940001,1340.1,1339.8,0.23]
[1673461735900,29.48940001,1340.1,1339.9,14.92648]
[1673461736286,0.56180001,1340.1,1339.9,14.99248]
[1673461736436,11.18667524,1340.2,1339.9,14.99248]
[1673461736655,11.18867525,1340.2,1339.9,14.99248]
[1673461737724,0.72703525,1340.2,1339.9,22.45572]
[1673461738049,0.72503524,1340.2,1339.9,22.45572]
[1673461738508,1.84393696,1340.2,1339.9,22.45572]
[1673461739081,4.84393696,1340.2,1339.9,22.45572]
[1673461739772,34.10053731,1340.3,1340.0,7.54532262]
[1673461739773,0.18381527,1340.3,1340.0,7.54532262]
[1673461739983,0.18381527,1340.3,1340.2,2.96149673]
[1673461739984,0.16781526,1340.3,1340.2,2.96149673]
[1673461740193,0.16781526,1340.3,1340.2,10.65306673]
[1673461740405,0.16781526,1340.3,1340.2,10.71906673]
[1673461741191,0.16781526,1340.3,1340.2,18.18063673]
[1673461742239,0.16781526,1340.3,1340.2,3.02749673]
[1673461742397,0.16781526,1340.3,1340.2,2.96149673]
[1673461744500,0.16781526,1340.3,1340.2,25.34620673]
[1673461744712,0.16781526,1340.3,1340.2,25.41220673]
[1673461745914,1e-08,1340.3,1340.2,17.95063673]
[1673461746129,0.98882014,1340.4,1340.2,17.95063673]
[1673461746341,0.98882014,1340.4,1340.2,25.41220673]
[1673461747657,0.98882014,1340.4,1340.3,0.23]
[1673461747906,0.98882014,1340.4,1340.3,22.61303]
[1673461748133,0.98882014,1340.4,1340.3,22.67903]
[1673461751120,0.98882014,1340.4,1340.3,25.67903]
[1673461751329,0.98882014,1340.4,1340.3,37.36591697]
[1673461751558,0.98882014,1340.4,1340.3,32.697922]
[1673461752001,0.98882014,1340.4,1340.3,32.664332]
[1673461752208,0.98882014,1340.4,1340.3,30.81369064]
[1673461752596,0.98882014,1340.4,1340.3,32.66435499]
[1673461752961,0.98882014,1340.4,1340.3,30.81369064]
[1673461753268,0.98882014,1340.4,1340.3,29.47669064]
[1673461753643,0.98882014,1340.4,1340.3,25.67903]
[1673461754120,0.98882014,1340.4,1340.3,3.296]
[1673461754273,0.98882014,1340.4,1340.3,14.92202]
[1673461754481,0.98882014,1340.4,1340.3,0.066]
[1673461754688,0.98882014,1340.4,1340.2,25.41128673]
[1673461756161,0.98882014,1340.4,1340.3,26.41069064]
[1673461756162,1.4e-07,1340.4,1340.3,26.41069064]
[1673461756320,1.4e-07,1340.4,1340.3,26.47669064]
[1673461756876,1.4e-07,1340.4,1340.3,29.47669064]
[1673461757091,1.4e-07,1340.4,1340.3,45.94762969]
[1673461757308,1.4e-07,1340.4,1340.3,41.26099064]
[1673461758469,1.4e-07,1340.4,1340.3,43.11159371]
[1673461758697,0.16845974,1340.5,1340.4,1.39099986]
[1673461758997,0.16845974,1340.5,1340.4,27.8000105]
[1673461759211,0.16845974,1340.5,1340.4,27.8660105]
[1673461759923,0.16845974,1340.5,1340.4,22.67934986]
[1673461761587,0.16845974,1340.5,1340.4,22.80134986]
[1673461761801,0.16845974,1340.5,1340.4,25.67934986]
[1673461765095,0.16845974,1340.5,1340.4,29.4770105]
[1673461765779,1e-08,1340.5,1340.4,29.4770105]
[1673461768246,1e-08,1340.5,1340.4,10.75844986]
[1673461768472,1e-08,1340.5,1340.4,25.67934986]
[1673461768829,1e-08,1340.5,1340.4,29.4770105]
[1673461772697,1e-08,1340.5,1340.4,30.8140105]
[1673461773089,1e-08,1340.5,1340.4,35.49922474]
[1673461773497,0.17680304,1340.7,1340.5,0.00199999]
[1673461773711,0.17680304,1340.7,1340.6,34.97202064]
[1673461773940,0.17680304,1340.7,1340.6,35.26802064]
[1673461774126,0.17680304,1340.7,1340.6,38.26802064]
[1673461777554,0.17680304,1340.7,1340.6,36.93102064]
[1673461782058,0.17680304,1340.7,1340.6,36.83102064]
[1673461785008,0.17680304,1340.7,1340.6,25.67402]
[1673461785953,1e-08,1340.7,1340.6,25.67402]
[1673461787972,1e-08,1340.7,1340.6,18.21468]
[1673461788124,1e-08,1340.7,1340.6,0.066]
[1673461788336,1e-08,1340.7,1340.5,14.92121999]
[1673461788337,1e-08,1340.7,1340.5,0.06799999]
[1673461788703,0.5596,1340.6,1340.5,14.92135999]
[1673461788917,0.5596,1340.6,1340.5,14.98735999]
[1673461789083,5.06450338,1340.7,1340.5,14.98735999]
[1673461789441,6.16517254,1340.7,1340.5,0.06799999]
[1673461789596,6.16517254,1340.7,1340.5,0.00199999]
[1673461789811,0.61651725,1340.6,1340.5,0.00199999]
[1673461793222,8.07585725,1340.6,1340.5,0.00199999]
[1673461793375,0.61851726,1340.6,1340.5,0.00199999]
[1673461793586,0.61651725,1340.6,1340.5,0.00199999]
[1673461795267,19.55084254,1340.7,1340.5,0.00199999]
[1673461795529,12.07797254,1340.7,1340.5,7.46181999]
[1673461795740,3.16517254,1340.7,1340.5,7.52781999]
[1673461795954,3.16317253,1340.7,1340.5,7.52781999]
[1673461796849,7.45934,1340.6,1340.5,0.06799999]
[1673461797060,26.48200642,1340.6,1340.5,0.00199999]
[1673461797272,35.08970642,1340.6,1340.5,0.00199999]
[1673461797477,35.08970642,1340.6,1340.4,0.00199986]
[1673461797687,4.8956,1340.5,1340.4,0.00199986]
[1673461797942,31.14043064,1340.5,1340.4,0.00199986]
[1673461798135,32.25709981,1340.5,1340.4,0.00199986]
[1673461798343,32.25709981,1340.5,1340.2,2.96149673]
[1673461798555,3.0,1340.4,1340.2,2.96149673]
[1673461798892,10.46072,1340.4,1340.2,2.96149673]
[1673461799086,1.046072,1340.3,1340.2,2.96149673]
[1673461800052,0.01600001,1340.4,1340.2,2.96149673]
[1673461800207,0.01600001,1340.4,1340.2,25.34620673]
[1673461800421,11.88474064,1340.5,1340.2,3.02749673]
[1673461800633,0.00200001,1340.5,1340.3,3.79766064]
[1673461800962,8.60970001,1340.6,1340.4,22.61135]
[1673461801181,8.60970001,1340.6,1340.4,0.296]
[1673461801521,1.70191313,1340.6,1340.2,14.58809291]
[1673461801740,1.69991312,1340.6,1340.2,16.2648891]
[1673461801950,1.69991312,1340.6,1340.2,23.7264591]
[1673461802102,10.49649312,1340.6,1340.2,6.02749673]
[1673461802308,10.49849313,1340.6,1340.2,10.48897673]
[1673461802572,1.04984931,1340.5,1340.2,17.95054673]
[1673461802785,1.70591313,1340.6,1340.3,0.32590795]
[1673461802954,1.69991312,1340.6,1340.3,7.78658795]
[1673461803167,1.69991312,1340.6,1340.3,7.85258795]
[1673461804773,1.69991312,1340.6,1340.3,15.31359795]
[1673461804938,0.5596,1340.6,1340.3,22.77460795]
[1673461805148,0.5596,1340.6,1340.3,26.57226859]
[1673461805433,9.42910002,1340.7,1340.4,0.23]
[1673461805739,22.37852,1340.6,1340.4,0.23]
[1673461805941,3.0,1340.5,1340.3,0.32590795]
[1673461806111,18.39198513,1340.6,1340.3,0.32590795]
[1673461806318,18.37798513,1340.6,1340.3,0.32590795]
[1673461806538,10.91864513,1340.6,1340.3,0.32590795]
[1673461806722,3.45930513,1340.6,1340.3,15.24775795]
[1673461806938,3.45930513,1340.6,1340.3,15.31375795]
[1673461806939,3.45730512,1340.6,1340.3,15.31375795]
[1673461807512,3.45730512,1340.6,1340.3,7.85274795]
[1673461807882,10.91666512,1340.6,1340.3,7.85274795]
[1673461808089,1.09166651,1340.5,1340.3,15.31375795]
[1673461808302,3.47330513,1340.6,1340.3,7.85274795]
[1673461808554,3.47330513,1340.6,1340.3,0.39190795]
[1673461808555,18.37675512,1340.6,1340.3,0.39190795]
[1673461808746,0.5596,1340.5,1340.3,7.78689795]
[1673461808960,0.5596,1340.5,1340.3,0.39190795]
[1673461809149,2.00884751,1340.5,1340.3,0.32590795]
[1673461809611,9.46876751,1340.5,1340.3,0.32590795]
[1673461809832,16.93068752,1340.5,1340.3,0.32590795]
[1673461810001,9.47076752,1340.5,1340.3,0.32590795]
[1673461810214,9.47074752,1340.5,1340.3,0.32590795]
[1673461810418,0.94707475,1340.4,1340.3,0.32590795]
[1673461810664,1e-08,1340.4,1340.3,0.32590795]
[1673461811561,9.47074752,1340.5,1340.3,0.32590795]
[1673461812977,16.93083752,1340.5,1340.3,0.32590795]
[1673461814923,15.48159001,1340.5,1340.3,0.32590795]
[1673461815764,0.56160001,1340.5,1340.3,7.78669795]
[1673461816005,0.56160001,1340.5,1340.3,22.77471795]
[1673461816006,0.5596,1340.5,1340.3,22.77471795]
[1673461816196,0.5596,1340.6,1340.3,22.77471795]
[1673461817550,9.42910002,1340.7,1340.3,22.77471795]
[1673461817757,9.41510002,1340.7,1340.3,22.77471795]
[1673461819121,8.85560002,1340.7,1340.3,26.57237859]
[1673461819335,8.85560002,1340.7,1340.5,7.4599]
[1673461819575,0.00200002,1340.7,1340.5,7.5259]
[1673461819809,1e-08,1340.7,1340.5,7.5259]
[1673461819982,1e-08,1340.7,1340.5,14.9858]
[1673461820386,1e-08,1340.7,1340.5,7.5259]
[1673461820615,7.45879001,1340.7,1340.5,0.066]
[1673461820862,8.57545918,1340.7,1340.4,15.21608]
[1673461821016,8.57545918,1340.7,1340.4,7.75592]
[1673461821220,8.57545918,1340.7,1340.4,15.21637]
[1673461821677,7.46079002,1340.7,1340.4,15.21637]
[1673461822294,8.57545918,1340.7,1340.4,15.21637]
[1673461822536,1.11666918,1340.7,1340.4,22.67682]
[1673461822750,1e-08,1340.7,1340.4,22.67682]
[1673461822964,8.57370917,1340.7,1340.4,0.296]
[1673461823125,24.82178918,1340.7,1340.3,23.56123795]
[1673461823335,18.74910918,1340.7,1340.4,14.92067]
[1673461823596,17.19119745,1340.7,1340.4,22.44712]
[1673461823905,8.84740002,1340.7,1340.4,22.44712]
[1673461825773,8.84740002,1340.7,1340.4,25.22312045]
[1673461826389,0.00200002,1340.7,1340.5,0.23]
[1673461826635,1e-08,1340.7,1340.6,22.37802]
[1673461826859,1e-08,1340.7,1340.6,22.44402]
[1673461828669,1e-08,1340.7,1340.6,26.24168064]
[1673461828834,1e-08,1340.7,1340.6,26.47168064]
[1673461829046,1e-08,1340.7,1340.6,28.32206968]
[1673461830429,1e-08,1340.7,1340.6,26.47168064]
[1673461830716,1e-08,1340.8,1340.6,26.47168064]
[1673461830935,1e-08,1340.8,1340.7,22.60637]
[1673461831142,1e-08,1340.8,1340.7,22.67237]
[1673461832607,1e-08,1340.8,1340.7,0.296]
[1673461832850,1e-08,1340.8,1340.5,7.6519]
[1673461833050,1e-08,1340.8,1340.6,22.37703]
[1673461833251,1e-08,1340.8,1340.6,22.44303]
[1673461833652,1e-08,1340.8,1340.6,14.98392]
[1673461833899,0.87529198,1340.8,1340.6,7.52481]
[1673461834110,3.87529198,1340.8,1340.6,14.98415]
[1673461834531,3.87529198,1340.8,1340.6,22.44349]
[1673461834861,1e-08,1340.8,1340.6,22.44349]
[1673461837645,1e-08,1340.8,1340.6,7.52481]
[1673461838155,3.00000001,1340.8,1340.6,7.52481]
[1673461838329,11.79023001,1340.8,1340.6,0.066]
[1673461838505,3.072523,1340.7,1340.4,0.066]
[1673461838711,14.91868,1340.6,1340.3,8.26800795]
[1673461839052,14.92068001,1340.6,1340.3,8.26800795]
[1673461839265,14.92068001,1340.6,1340.3,7.85283795]
[1673461839266,17.92068001,1340.6,1340.3,7.85283795]
[1673461839586,23.57533423,1340.6,1340.3,7.85283795]
[1673461839808,20.57533423,1340.6,1340.3,0.39190795]
[1673461839973,3.0,1340.5,1340.3,0.32590795]
[1673461840494,20.58965423,1340.6,1340.3,7.78675795]
[1673461840708,28.03531423,1340.6,1340.3,0.39190795]
[1673461840923,28.03531423,1340.6,1340.3,3.32590795]
[1673461841130,5.65665423,1340.6,1340.3,18.24739795]
[1673461841342,0.00200001,1340.6,1340.3,18.31339795]
[1673461841554,54.09189301,1340.7,1340.3,18.31339795]
[1673461841743,46.63268301,1340.7,1340.3,18.31339795]
[1673461841976,46.63268301,1340.7,1340.3,21.089494]
[1673461842599,46.63268301,1340.7,1340.3,28.550504]
[1673461843817,39.17359301,1340.7,1340.3,28.550504]
[1673461844109,46.63271301,1340.7,1340.3,28.550504]
[1673461844477,30.53560001,1340.7,1340.3,28.550504]
[1673461844688,29.20160001,1340.7,1340.3,29.64994018]
[1673461845138,29.20160001,1340.7,1340.4,1.85062477]
[1673461845354,29.20160001,1340.7,1340.4,16.77075477]
[1673461845560,29.20360001,1340.7,1340.4,14.98413]
[1673461845794,29.20160001,1340.7,1340.4,22.44658]
[1673461846418,36.66042001,1340.7,1340.4,22.44658]
[1673461846636,36.66042001,1340.7,1340.4,14.98613]
[1673461847791,29.20160001,1340.7,1340.4,22.44658]
[1673461848106,36.66044001,1340.7,1340.4,14.98613]
[1673461848323,29.20160001,1340.7,1340.4,22.44658]
[1673461848494,29.20160001,1340.7,1340.4,14.98613]
[1673461848706,29.20160001,1340.7,1340.4,22.44658]
[1673461849270,29.20160001,1340.7,1340.4,22.42658]
[1673461849472,29.76110001,1340.7,1340.4,22.42658]
[1673461849647,29.76110001,1340.7,1340.4,14.96613]
[1673461849648,29.20160001,1340.7,1340.4,14.96613]
[1673461850066,36.66050001,1340.7,1340.4,7.50592]
[1673461850281,42.12025393,1340.7,1340.4,14.96637]
[1673461850739,29.20160001,1340.7,1340.4,22.42682]
[1673461850929,29.20160001,1340.7,1340.4,14.96637]
[1673461851239,29.20160001,1340.7,1340.4,22.42682]
[1673461851456,29.20160001,1340.7,1340.5,0.37295376]
[1673461851667,29.20160001,1340.7,1340.5,7.83268376]
[1673461851876,29.20160001,1340.7,1340.5,7.89868376]
[1673461852365,0.00200001,1340.7,1340.5,7.89868376]
[1673461852576,1.96038412,1340.7,1340.5,0.43895376]
[1673461852828,9.41925412,1340.7,1340.5,0.37295376]
[1673461853055,17.99479329,1340.7,1340.5,0.37295376]
[1673461853281,26.78566329,1340.7,1340.5,0.37295376]
[1673461853444,19.32679329,1340.7,1340.5,0.37295376]
[1673461853847,11.86792329,1340.7,1340.5,0.37295376]
[1673461855111,1.18679233,1340.6,1340.5,0.37295376]
[1673461855322,19.34071329,1340.7,1340.5,0.37295376]
[1673461855527,19.32671329,1340.7,1340.5,0.37295376]
[1673461856307,26.78586329,1340.7,1340.5,0.37295376]
[1673461856461,28.45062533,1340.7,1340.5,0.37295376]
[1673461857152,26.78586329,1340.7,1340.5,0.37295376]
[1673461857369,2.67858633,1340.6,1340.5,0.37295376]
[1673461857511,26.79987329,1340.7,1340.6,1.97407657]
[1673461857726,19.32663329,1340.7,1340.6,1.97407657]
[1673461858199,26.78589329,1340.7,1340.6,1.97407657]
[1673461858508,3.29438413,1340.7,1340.6,1.97407657]
[1673461858723,3.29238412,1340.7,1340.6,1.97407657]
[1673461860367,19.62314918,1340.8,1340.6,1.97407657]
[1673461860609,19.61114918,1340.8,1340.6,1.97407657]
[1673461860818,10.46854918,1340.8,1340.6,1.97407657]
[1673461861458,9.35388002,1340.8,1340.6,1.97407657]
[1673461861616,17.92698918,1340.8,1340.6,1.97407657]
[1673461861829,16.29305517,1340.7,1340.6,1.97407657]
[1673461862066,16.29505518,1340.7,1340.6,1.97407657]
[1673461862240,8.83626518,1340.7,1340.6,1.97407657]
[1673461862453,9.95093434,1340.7,1340.6,1.97407657]
[1673461863084,2.49214434,1340.7,1340.6,1.97407657]
[1673461863293,1.37547517,1340.7,1340.6,1.97407657]
[1673461864150,8.83426517,1340.7,1340.6,1.97407657]
[1673461864516,9.95093434,1340.7,1340.6,1.97407657]